bitfinex/quotes_SOLUSD_20260314
["timestamp","ask_amount","ask_price","bid_price","bid_amount"]
[1773519845528,0.46297843,86.979,86.942,0.49754729]
[1773519848735,0.46297843,86.977,86.95,3.74570445]
[1773519850142,0.46297843,86.986,86.961,0.49754729]
[1773519850430,0.46297843,86.986,86.95,4.24325174]
[1773519850431,0.46297843,86.985,86.95,4.24325174]
[1773519850825,0.46297843,86.983,86.951,11.50073029]
[1773519851136,0.46297843,86.983,86.951,11.99827758]
[1773519852518,0.46297843,86.983,86.952,0.49754729]
[1773519853139,0.46297843,86.981,86.953,11.50046576]
[1773519854437,11.49689583,86.98,86.953,11.50046576]
[1773519854640,0.46297843,86.979,86.953,11.50046576]
[1773519856729,0.46297843,86.979,86.953,11.99801305]
[1773519861144,0.46297843,86.977,86.953,11.50046576]
[1773519863444,11.49742457,86.976,86.953,11.50046576]
[1773519863645,0.45380761,86.975,86.953,11.50046576]
[1773519869852,0.45380761,86.973,86.953,11.50046576]
[1773519876754,0.45380761,86.971,86.952,0.49210214]
[1773519877643,0.45380761,86.971,86.94,4.23780659]
[1773519877950,0.45380761,86.971,86.941,0.49210214]
[1773519880752,40.24283677,86.972,86.941,0.49210214]
[1773519880753,0.45380761,86.969,86.941,0.49210214]
[1773519881955,0.45380761,86.967,86.941,0.49210214]
[1773519884459,11.49874663,86.966,86.941,0.49210214]
[1773519885262,11.95255424,86.966,86.941,0.49210214]
[1773519885443,0.45380761,86.965,86.941,0.49210214]
[1773519886543,11.49901108,86.964,86.941,0.49210214]
[1773519890062,0.45380761,86.964,86.941,0.49210214]
[1773519891364,11.49914331,86.963,86.941,0.49210214]
[1773519891560,0.47072268,86.962,86.941,0.49210214]
[1773519892562,11.49940778,86.961,86.941,0.49210214]
[1773519894169,0.47072268,86.96,86.926,102.9]
[1773519894355,0.47072268,86.96,86.931,0.49728906]
[1773519894859,0.47072268,86.959,86.931,0.49728906]
[1773519895660,0.47072268,86.957,86.931,0.49728906]
[1773519898771,0.47072268,86.955,86.905,2.95506722]
[1773519899073,0.47072268,86.955,86.93,3.75053057]
[1773519900875,0.47072268,86.953,86.931,0.47011624]
[1773519902675,11.50059803,86.952,86.931,0.47011624]
[1773519905878,0.47072268,86.952,86.931,0.47011624]
[1773519908479,11.50073029,86.951,86.931,0.47011624]
[1773519908780,11.97145297,86.951,86.931,0.47011624]
[1773519909369,0.47072268,86.95,86.931,0.47011624]
[1773519912784,11.50099483,86.949,86.931,0.47011624]
[1773519918190,0.47072268,86.948,86.931,0.47011624]
[1773519919393,11.50125938,86.947,86.931,0.47011624]
[1773519922975,11.99966982,86.947,86.931,0.47011624]
[1773519925081,0.49841044,86.946,86.931,0.47011624]
[1773519926303,11.50152395,86.945,86.931,0.47011624]
[1773519927901,0.49841044,86.945,86.931,0.47011624]
[1773519928075,0.49841044,86.945,86.93,3.75053057]
[1773519929481,11.50165623,86.944,86.93,3.75053057]
[1773519929681,12.00006667,86.944,86.93,3.75053057]
[1773519932209,0.49841044,86.943,86.93,3.75053057]
[1773519933302,11.50192082,86.942,86.93,4.22064681]
[1773519933690,12.00033126,86.942,86.93,4.22064681]
[1773519933904,12.00033126,86.942,86.93,3.75053057]
[1773519934292,12.00033126,86.942,86.93,4.22064681]
[1773519934500,0.49841044,86.941,86.925,0.47011624]
[1773519934710,0.49841044,86.941,86.921,0.47011624]
[1773519935495,0.49841044,86.939,86.921,0.47011624]
[1773519937189,11.50245002,86.938,86.921,0.47011624]
[1773519937379,12.00086046,86.938,86.921,0.47011624]
[1773519943106,0.49841044,86.937,86.921,0.47011624]
[1773519945996,11.50271464,86.936,86.921,0.47011624]
[1773519957723,12.00110453,86.937,86.921,0.47011624]
[1773519963928,0.4568587,86.936,86.921,0.47011624]
[1773519965524,11.50284695,86.935,86.921,0.47011624]
[1773519968415,0.4568587,86.935,86.921,0.47011624]
[1773519971232,11.95981916,86.935,86.921,0.47011624]
[1773519971434,0.4568587,86.934,86.921,0.47011624]
[1773520007361,11.50305932,86.934,86.911,11.50601956]
[1773520007560,0.49208921,86.933,86.912,0.47011624]
[1773520011450,0.47875798,86.931,86.912,0.47011624]
[1773520018958,0.47875798,86.931,86.914,0.4601076]
[1773520019469,0.47875798,86.935,86.92,4.21090248]
[1773520020358,0.47875798,86.935,86.921,0.4601076]
[1773520034782,0.47875798,86.935,86.92,3.75079488]
[1773520071506,11.50297927,86.934,86.92,3.75079488]
[1773520071809,0.49583705,86.933,86.92,3.75079488]
[1773520079598,0.49583705,86.933,86.92,3.75102126]
[1773520082322,0.49583705,86.933,86.917,0.4601076]
[1773520091731,0.49583705,86.931,86.912,0.47011624]
[1773520096533,0.49583705,86.931,86.92,3.75102126]
[1773520104826,0.49583705,86.931,86.916,0.47011624]
[1773520105126,0.49583705,86.931,86.92,3.75102126]
[1773520108138,0.49583705,86.931,86.916,0.47011624]
[1773520123671,0.49583705,86.931,86.92,3.75102126]
[1773520141153,0.49356603,86.929,86.901,102.9]
[1773520141353,0.49356603,86.929,86.91,3.75102126]
[1773520141570,0.49356603,86.929,86.91,3.7522151]
[1773520143271,11.50377323,86.928,86.91,3.7522151]
[1773520143466,0.49356603,86.927,86.91,3.7522151]
[1773520145761,0.49356603,86.925,86.91,3.7522151]
[1773520145976,0.49356603,86.925,86.9,3.7522151]
[1773520147462,0.49356603,86.923,86.9,3.7522151]
[1773520151775,0.49356603,86.921,86.9,3.7522151]
[1773520154871,0.49356603,86.919,86.9,3.7522151]
[1773520159078,0.49356603,86.917,86.9,3.7522151]
[1773520163987,0.47966312,86.915,86.9,3.7522151]
[1773520170200,11.50562625,86.914,86.896,17.14031886]
[1773520170501,0.47966312,86.913,86.89,3.7522151]
[1773520172103,0.47966312,86.911,86.89,3.7522151]
[1773520175300,0.47966312,86.909,86.89,3.7522151]
[1773520178802,0.47966312,86.907,86.89,3.7522151]
[1773520179699,0.47966312,86.907,86.89,4.23630466]
[1773520183011,0.47966312,86.907,86.891,0.48408956]
[1773520183805,0.47966312,86.912,86.9,3.7522151]
[1773520184612,0.47966312,86.912,86.89,3.7522151]
[1773520185113,0.47966312,86.91,86.89,3.7522151]
[1773520186296,0.47966312,86.908,86.891,0.48408956]
[1773520193015,0.47966312,86.908,86.9,3.7522151]
[1773520198627,0.47966312,86.908,86.891,0.48408956]
[1773520200625,0.49877139,86.906,86.891,0.48408956]
[1773520205026,0.49877139,86.912,86.9,3.75341246]
[1773520205426,0.49877139,86.912,86.896,0.47037287]
[1773520206013,11.5060234,86.911,86.896,0.47037287]
[1773520206237,0.49877139,86.91,86.896,0.47037287]
[1773520210734,11.50628818,86.909,86.896,0.47037287]
[1773520214238,11.50628818,86.909,86.896,0.09989696]
[1773520214427,12.00505957,86.909,86.896,0.09989696]
[1773520215338,0.49877139,86.908,86.89,3.75341246]
[1773520216236,0.49877139,86.908,86.891,0.29964033]
[1773520222556,0.49488264,86.906,86.887,0.29964033]
[1773520222751,0.49488264,86.906,86.89,4.05305279]
[1773520226453,0.49488264,86.904,86.872,0.29964033]
[1773520226654,0.49488264,86.904,86.88,3.75341246]
[1773520227358,0.49488264,86.904,86.881,0.29964033]
[1773520228243,0.49488264,86.902,86.881,0.29964033]
[1773520230554,0.49488264,86.902,86.89,3.75341246]
[1773520236080,0.49488264,86.9,86.89,3.75341246]
[1773520237278,0.49488264,86.898,86.871,11.51132138]
[1773520237478,0.49488264,86.898,86.88,3.75341246]
[1773520242775,0.49488264,86.896,86.88,3.75341246]
[1773520249390,0.49488264,86.896,86.88,4.05305279]
[1773520255400,0.49488264,86.896,86.881,0.29964033]
[1773520273927,0.49488264,86.896,86.88,3.75403266]
[1773520276932,0.49488264,86.896,86.874,11.51084963]
[1773520277122,0.46678002,86.894,86.87,15.36537604]
[1773520277314,0.46678002,86.894,86.871,0.29964033]
[1773520278729,0.46678002,86.894,86.88,3.75403266]
[1773520310760,0.46678002,86.894,86.876,0.29964033]
[1773520315777,11.50840689,86.893,86.876,0.29964033]
[1773520315953,11.50840689,86.893,86.871,11.51126832]
[1773520315954,0.49501286,86.892,86.871,11.81090865]
[1773520316355,0.49501286,86.892,86.871,11.51126832]
[1773520316554,0.49501286,86.892,86.872,0.29964033]
[1773520316755,0.49501286,86.892,86.88,3.75403266]
[1773520317772,0.49501286,86.89,86.871,11.51126832]
[1773520317954,0.49501286,86.89,86.87,3.85403266]
[1773520317955,0.49501286,86.89,86.87,0.1]
[1773520318161,0.49501286,86.89,86.87,3.85403266]
[1773520320970,0.49501286,86.888,86.87,3.85403266]
[1773520322384,0.49501286,86.886,86.87,3.85403266]
[1773520322877,0.49501286,86.892,86.88,3.75403266]
[1773520323686,0.49501286,86.892,86.88,3.75447341]
[1773520325283,11.50867178,86.891,86.88,3.75447341]
[1773520326974,0.49501286,86.89,86.88,3.75447341]
[1773520328892,11.50893668,86.889,86.88,3.75447341]
[1773520329593,0.49501286,86.888,86.874,0.29964033]
[1773520329786,0.49501286,86.888,86.88,3.75447341]
[1773520331975,40.76887511,86.905,86.88,3.75447341]
[1773520332292,0.49501286,86.904,86.88,3.75447341]
[1773520334997,0.49501286,86.902,86.88,3.75447341]
[1773520335998,0.49501286,86.902,86.874,0.29964033]
[1773520337601,0.49501286,86.9,86.874,0.29964033]
[1773520340998,0.49501286,86.898,86.874,0.29964033]
[1773520343084,0.45073858,86.896,86.874,0.29964033]
[1773520347486,0.45073858,86.894,86.874,0.29964033]
[1773520348601,11.50840689,86.893,86.874,0.29964033]
[1773520348813,0.45073858,86.892,86.874,0.29964033]
[1773520350099,0.45073858,86.89,86.874,0.29964033]
[1773520351590,11.50668538,86.906,86.872,0.49783593]
[1773520351805,11.50668538,86.906,86.871,11.51126269]
[1773520351806,11.50668538,86.906,86.881,0.49783593]
[1773520352305,28.76558345,86.91,86.881,0.49783593]
[1773520353496,0.45073858,86.907,86.881,0.49783593]
[1773520355996,11.50668538,86.906,86.881,0.49783593]
[1773520356197,0.45073858,86.905,86.881,0.49783593]
[1773520359014,0.45073858,86.903,86.881,0.49783593]
[1773520362019,0.45073858,86.901,86.881,0.49783593]
[1773520364919,11.50747986,86.9,86.881,0.49783593]
[1773520365106,0.45073858,86.899,86.881,0.49783593]
[1773520366027,0.45073858,86.899,86.89,3.75447341]
[1773520366203,11.50562625,86.914,86.891,0.49783593]
[1773520366403,11.50562625,86.914,86.901,0.49783593]
[1773520369517,11.50496439,86.919,86.901,0.49783593]
[1773520370026,10.75458548,86.919,86.91,3.75447341]
[1773520371605,19.56377323,86.928,86.91,3.75447341]
[1773520371806,0.5,86.927,86.91,3.75447341]
[1773520373024,11.50403791,86.926,86.91,3.75447341]
[1773520373419,0.5,86.925,86.91,3.75447341]
[1773520374618,11.50403791,86.926,86.91,3.75447341]
[1773520374835,0.5,86.927,86.92,3.75447341]
[1773520375124,12.00403791,86.926,86.91,3.75447341]
[1773520375324,0.5,86.925,86.91,3.75447341]
[1773520377930,0.5,86.923,86.91,3.75447341]
[1773520385837,0.5,86.923,86.91,3.7517358]
[1773520400756,0.5,86.921,86.878,28.77571226]
[1773520401050,0.5,86.921,86.9,3.7517358]
[1773520401525,0.5,86.921,86.89,3.7517358]
[1773520401925,0.5,86.919,86.891,11.50867178]
[1773520402931,11.50483202,86.92,86.891,11.50867178]
[1773520402932,0.5,86.917,86.891,11.50867178]
[1773520405747,11.50536149,86.916,86.891,11.50867178]
[1773520405954,0.5,86.915,86.891,11.50867178]
[1773520412264,0.5,86.915,86.9,3.7517358]
[1773520413544,11.50562625,86.914,86.891,11.50867178]
[1773520413750,0.5,86.913,86.891,11.50867178]
[1773520414162,0.5,86.913,86.88,3.7517358]
[1773520414853,11.50562625,86.914,86.85,11.05043306]
[1773520414854,0.5,86.909,86.86,3.8517358]
[1773520415047,0.5,86.899,86.863,11.51236508]
[1773520415667,0.5,86.897,86.861,11.51264664]
[1773520416268,0.5,86.897,86.87,3.8517358]
[1773520419570,0.5,86.895,86.87,3.8517358]
[1773520424069,0.5,86.895,86.87,0.1]
[1773520424266,0.5,86.893,86.87,0.1]
[1773520424464,0.5,86.893,86.87,3.8517358]
[1773520426376,0.5,86.891,86.87,3.8517358]
[1773520427369,0.5,86.889,86.87,3.8517358]
[1773520447686,0.5,86.889,86.87,3.85529737]
[1773520452404,0.5,86.887,86.87,3.85529737]
[1773520453405,0.5,86.887,86.87,0.1]
[1773520479930,0.5,86.887,86.87,3.85529737]
[1773520493139,7.59535835,86.91,86.871,11.51132138]
[1773520493343,7.59535835,86.91,86.88,3.75529737]
[1773520493344,0.5,86.908,86.88,3.75529737]
[1773520494419,0.5,86.908,86.871,40.28962484]
[1773520494624,0.5,86.908,86.89,3.75529737]
[1773520502146,0.5,86.906,86.89,3.75529737]
[1773520507331,0.5,86.904,86.881,11.50997279]
[1773520508354,0.5,86.902,86.88,3.75529737]
[1773520509554,0.5,86.902,86.88,3.75464332]
[1773520511951,0.5,86.9,86.88,3.75464332]
[1773520516064,11.50761228,86.899,86.88,3.75464332]
[1773520516247,0.5,86.898,86.88,3.75464332]
[1773520521362,0.5,86.896,86.88,3.75464332]
[1773520524773,0.5,86.896,86.881,11.50999643]
[1773520534666,0.5,86.896,86.871,40.28956834]
[1773520535578,0.5,86.9,86.871,40.28956834]
[1773520539264,11.50738962,86.901,86.871,40.28956834]
[1773520547879,0.5,86.901,86.871,40.28956834]
[1773520554292,0.5,86.9,86.871,40.28956834]
[1773520568211,0.5,86.9,86.87,0.1]
[1773520570610,0.5,86.9,86.871,11.51132138]
[1773520612638,0.5,86.9,86.87,0.1]
[1773520615843,0.5,86.9,86.87,3.85448214]
[1773520617346,0.5,86.9,86.871,11.51132138]
[1773520618249,0.5,86.9,86.88,3.75448214]
[1773520623845,11.50761228,86.899,86.88,3.75448214]
[1773520624029,0.5,86.898,86.88,3.75448214]
[1773520633656,0.5,86.898,86.88,3.75391733]
[1773520656378,0.5,86.898,86.881,11.50999643]
[1773520663406,0.5,86.905,86.89,3.75391733]
[1773520663604,11.50509675,86.918,86.901,0.46883313]
[1773520663909,11.50509675,86.918,86.9,3.75391733]
[1773520665592,0.46062345,86.915,86.9,3.75391733]
[1773520669220,0.46062345,86.915,86.9,4.23730609]
[1773520682628,0.46062345,86.915,86.9,3.75391733]
[1773520684115,0.46062345,86.915,86.901,0.48302901]
[1773520684513,0.46062345,86.915,86.9,3.75391733]
[1773520693637,0.46062345,86.915,86.9,3.75263464]
[1773520696516,0.46062345,86.915,86.9,4.23566365]
[1773520698438,8.08,86.937,86.911,0.48302901]
[1773520698439,0.49626939,86.935,86.911,0.48302901]
[1773520698641,0.49626939,86.935,86.92,3.75263464]
[1773520700239,0.49626939,86.933,86.91,3.75263464]
[1773520704046,0.46592009,86.931,86.91,4.23385843]
[1773520709754,0.46592009,86.929,86.91,4.23385843]
[1773520714555,0.46592009,86.927,86.91,4.23385843]
[1773520714740,0.46592009,86.927,86.911,0.48122379]
[1773520718946,0.46592009,86.931,86.911,0.48122379]
[1773520724861,0.46592009,86.929,86.905,0.48122379]
[1773520725068,0.46592009,86.929,86.91,3.75263464]
[1773520730161,11.50377323,86.928,86.91,3.75263464]
[1773520730360,0.460083,86.927,86.91,3.75263464]
[1773520731948,11.50317861,86.933,86.92,4.23787525]
[1773520732145,2.67616618,86.937,86.921,0.48524061]
[1773520732453,8.06,86.942,86.921,0.48524061]
[1773520733651,11.50205311,86.941,86.921,0.48524061]
[1773520733967,11.50205311,86.941,86.92,3.75263464]
[1773520734268,0.46988363,86.94,86.92,3.75263464]
[1773520734469,0.46988363,86.94,86.916,0.48524061]
[1773520737261,0.46988363,86.938,86.916,0.48524061]
[1773520739453,0.46988363,86.936,86.916,0.48524061]
[1773520740660,0.46988363,86.934,86.916,0.48524061]
[1773520744372,0.46988363,86.932,86.9,28.7686014]
[1773520744557,11.50311159,86.933,86.888,11.50906076]
[1773520744558,0.46988363,86.919,86.888,11.50906076]
[1773520745859,0.46988363,86.919,86.89,3.75263464]
[1773520746477,0.46988363,86.917,86.891,0.48464302]
[1773520747867,0.46988363,86.917,86.892,0.48464302]
[1773520748784,0.46988363,86.917,86.894,0.48464302]
[1773520749372,0.46988363,86.915,86.894,0.48464302]
[1773520765806,0.4829108,86.913,86.894,0.48464302]
[1773520766307,11.50589101,86.912,86.894,0.48464302]
[1773520766492,0.4829108,86.911,86.894,0.48464302]
[1773520770300,0.4829108,86.911,86.89,3.75332429]
[1773520770500,0.4829108,86.911,86.89,4.23016043]
[1773520771602,0.4829108,86.909,86.89,4.23016043]
[1773520776313,0.4829108,86.907,86.89,4.23016043]
[1773520784919,0.4829108,86.905,86.89,4.23016043]
[1773520787312,11.81332429,86.92,86.88,0.47683614]
[1773520787313,0.4829108,86.903,86.88,0.47683614]
[1773520787500,0.4829108,86.903,86.871,0.47683614]
[1773520789821,0.46090033,86.899,86.87,0.1]
[1773520790306,0.46090033,86.899,86.871,0.45699426]
[1773520791417,0.45818324,86.897,86.871,0.45699426]
[1773520793619,0.45818324,86.895,86.871,0.45699426]
[1773520795516,11.50827444,86.894,86.871,0.45699426]
[1773520795721,0.45818324,86.893,86.871,0.45699426]
[1773520799029,0.45818324,86.891,86.871,0.45699426]
[1773520801732,11.50880423,86.89,86.871,0.45699426]
[1773520802029,0.45818324,86.889,86.871,0.45699426]
[1773520812738,11.50906914,86.888,86.871,0.45699426]
[1773520813038,0.45818324,86.887,86.871,0.45699426]
[1773520827932,0.45132837,86.908,86.873,0.48464302]
[1773520828228,0.45132837,86.908,86.87,0.1]
[1773520828434,0.45132837,86.899,86.87,0.58464302]
[1773520830459,11.50774471,86.898,86.87,0.58464302]
[1773520830753,0.45132837,86.897,86.87,0.58464302]
[1773520834336,0.45132837,86.895,86.871,0.48464302]
[1773520836250,11.50827444,86.894,86.871,0.48464302]
[1773520836448,0.45132837,86.893,86.871,0.48464302]
[1773520839248,0.45132837,86.891,86.871,0.48464302]
[1773520849366,0.48059276,86.889,86.871,0.48464302]
[1773520855873,0.45078471,86.887,86.87,0.1]
[1773520856773,0.45078471,86.887,86.87,0.5797419]
[1773520859477,0.45078471,86.887,86.87,4.33546543]
[1773520859677,0.45078471,86.887,86.871,0.4797419]
[1773520867082,0.45078471,86.887,86.873,0.4797419]
[1773520867282,0.45078471,86.887,86.873,0.09797811]
[1773520870073,0.45078471,86.887,86.87,0.1]
[1773520875689,0.45078471,86.887,86.87,0.20287923]
[1773520878081,0.45078471,86.887,86.871,0.10287923]
[1773520880397,0.45078471,86.898,86.871,0.10287923]
[1773520881396,8.06,86.92,86.891,0.10287923]
[1773520881596,0.48586746,86.932,86.911,0.10287923]
[1773520881780,0.5,86.951,86.92,3.75576079]
[1773520881980,0.5,86.968,86.94,3.75576079]
[1773520882202,0.5,86.965,86.913,8.08]
[1773520882400,7.72460149,86.979,86.94,3.75576079]
[1773520882401,0.5,86.974,86.94,3.75576079]
[1773520882606,0.5,86.973,86.94,3.75576079]
[1773520883200,0.5,86.973,86.95,3.75576079]
[1773520883399,0.5,86.973,86.916,2.95506722]
[1773520883590,0.5,86.973,86.94,3.75576079]
[1773520883786,0.5,86.971,86.94,3.75576079]
[1773520884301,0.5,86.971,86.95,3.75576079]
[1773520884685,0.5,86.971,86.94,3.75576079]
[1773520886401,0.5,86.969,86.94,3.75576079]
[1773520886586,0.5,86.969,86.917,8.08]
[1773520886587,0.5,86.959,86.93,3.75576079]
[1773520886787,0.5,86.959,86.92,3.75576079]
[1773520887491,0.5,86.949,86.91,3.75576079]
[1773520887794,0.5,86.947,86.92,3.75576079]
[1773520889296,0.5,86.947,86.921,11.50469966]
[1773520891502,0.5,86.947,86.91,3.75576079]
[1773520892305,3.75576079,86.96,86.91,3.75576079]
[1773520892306,0.5,86.945,86.91,3.75576079]
[1773520894283,0.5,86.945,86.911,11.5060234]
[1773520897508,0.5,86.945,86.902,40.27525257]
[1773520899313,0.5,86.945,86.911,11.5060234]
[1773520905907,0.5,86.945,86.911,19.5660234]
[1773520909708,0.5,86.945,86.921,11.50469966]
[1773520911821,0.5,86.943,86.912,11.50589101]
[1773520913811,11.50192082,86.942,86.912,11.50589101]
[1773520914011,0.5,86.941,86.912,11.50589101]
[1773520914317,0.5,86.941,86.911,8.06]
[1773520914513,0.5,86.939,86.911,7.32367487]
[1773520914730,0.5,86.939,86.892,28.77112952]
[1773520914731,0.48708044,86.929,86.892,8.06]
[1773520915549,0.48708044,86.929,86.891,0.2]
[1773520915734,0.48708044,86.927,86.895,11.70802387]
[1773520916918,0.48708044,86.927,86.899,11.50761228]
[1773520917925,0.48708044,86.925,86.899,11.50761228]
[1773520919342,0.48708044,86.923,86.9,0.2]
[1773520919946,0.48708044,86.927,86.901,0.2]
[1773520920126,0.48708044,86.927,86.911,0.2]
[1773520923047,0.48708044,86.927,86.902,0.2]
[1773520923536,0.48708044,86.925,86.902,0.2]
[1773520925247,0.48708044,86.923,86.896,11.50788182]
[1773520927335,0.48708044,86.921,86.899,11.50761228]
[1773520930642,0.48708044,86.921,86.9,0.2]
[1773520932653,0.48708044,86.921,86.901,11.50734744]
[1773520934259,0.48708044,86.921,86.901,11.70734744]
[1773520936666,0.48708044,86.921,86.902,0.2]
[1773520939165,11.99117639,86.926,86.904,0.2]
[1773520942264,0.45254328,86.935,86.911,0.2]
[1773520944873,0.45254328,86.933,86.911,0.2]
[1773520946273,0.45254328,86.931,86.906,0.2]
[1773520950752,0.45254328,86.929,86.906,0.2]
[1773520953873,0.45254328,86.927,86.906,0.2]
[1773520955076,0.45254328,86.925,86.906,0.2]
[1773520962879,11.500069,86.956,86.911,0.45140931]
[1773520963083,40.2502415,86.956,86.921,0.45140931]
[1773520964789,0.45254328,86.953,86.921,0.45140931]
[1773520968185,40.2520931,86.952,86.93,3.75221373]
[1773520968392,0.45254328,86.951,86.93,3.75221373]
[1773520969488,0.46291229,86.949,86.927,0.45140931]
[1773520969686,0.46291229,86.949,86.89,102.9]
[1773520969687,0.5,86.992,86.96,3.75221373]
[1773520969890,0.2,87.0,86.97,3.75221373]
[1773520970098,3.95221373,87.0,86.96,3.75221373]
[1773520971387,28.73684495,86.997,86.96,3.75221373]
[1773520971771,0.45907827,86.996,86.96,3.75221373]
[1773520972482,0.45907827,86.996,86.961,11.49940778]
[1773520972684,0.45907827,86.996,86.961,11.97498472]
[1773520974703,0.45907827,86.994,86.961,11.97498472]
[1773520974880,0.45907827,86.994,86.961,0.47557694]
[1773520980701,0.45907827,86.992,86.961,0.47557694]
[1773520981995,3.75221373,86.98,86.948,0.47557694]
[1773520982189,0.45907827,86.979,86.942,0.47557694]
[1773520982795,0.45907827,86.977,86.942,0.47557694]
[1773520983412,0.45907827,86.977,86.95,3.75221373]
[1773520983610,0.45907827,86.977,86.946,0.47557694]
[1773520984799,0.45907827,86.975,86.946,0.47557694]
[1773520992507,0.45907827,86.99,86.961,0.47557694]
[1773520992691,11.95465247,86.99,86.97,3.75221373]
[1773520992893,11.95465247,86.99,86.971,0.47557694]
[1773520993308,0.45907827,86.989,86.971,0.47557694]
[1773520993809,0.45907827,86.987,86.961,0.47557694]
[1773520995523,0.45907827,86.985,86.961,0.47557694]
[1773520996623,0.45907827,86.989,86.971,0.47557694]
[1773521003713,0.48980594,86.987,86.971,0.47557694]
[1773521005319,0.48980594,86.992,86.971,0.47557694]
[1773521009446,0.48980594,86.99,86.971,0.47557694]
[1773521011729,11.49570635,86.989,86.971,0.47557694]
[1773521011930,0.48980594,86.988,86.971,0.47557694]
[1773521017220,0.48980594,86.988,86.971,0.49368169]
[1773521017636,0.48980594,86.999,86.972,0.49368169]
[1773521017849,0.48980594,86.999,86.974,0.49368169]
[1773521020248,11.49451711,86.998,86.974,0.49368169]
[1773521020440,0.48980594,86.997,86.974,0.49368169]
[1773521020658,0.48980594,86.997,86.942,104.05019208]
[1773521020659,0.48980594,86.997,86.96,3.74647324]
[1773521022651,0.48980594,86.995,86.963,0.49368169]
[1773521024048,11.49504563,86.994,86.964,11.49901108]
[1773521024263,0.2,87.0,86.971,0.49368169]
[1773521024433,0.48980594,87.009,86.991,0.49368169]
[1773521025339,0.2,87.01,86.991,0.49368169]
[1773521026355,0.48980594,87.014,86.966,8.06]
[1773521026356,0.49971109,87.014,86.966,8.06]
[1773521026550,0.49971109,87.013,86.98,3.74647324]
[1773521030357,0.49971109,87.011,86.981,11.49676366]
[1773521031261,0.49971109,87.011,86.99,3.74647324]
[1773521032256,0.49971109,87.016,87.0,3.74647324]
[1773521032950,0.2,87.02,87.0,15.24061992]
[1773521033657,0.2,87.02,87.01,3.74647324]
[1773521033859,0.2,87.02,87.0,15.24061992]
[1773521034057,0.2,87.02,87.01,3.74647324]
[1773521034454,0.2,87.02,87.0,3.74647324]
[1773521035253,0.49971109,87.019,87.0,3.74647324]
[1773521036874,0.49971109,87.019,87.001,11.49412075]
[1773521037974,0.49971109,87.019,87.0,3.74647324]
[1773521040170,0.49971109,87.018,87.0,3.74647324]
[1773521044274,0.49971109,87.018,87.0,15.24069255]
[1773521045380,0.49971109,87.018,87.01,3.74647324]
[1773521045574,0.2,87.02,87.01,3.74647324]
[1773521047266,0.2,87.03,87.011,11.49279976]
[1773521047671,0.69971109,87.03,87.011,11.49279976]
[1773521047981,0.49971109,87.029,87.011,11.49279976]
[1773521049390,0.2,87.03,87.02,3.74647324]
[1773521049890,0.49971109,87.029,87.02,3.74647324]
[1773521050985,0.49971109,87.029,87.011,11.49279976]
[1773521055800,0.49971109,87.029,86.997,11.49464924]
[1773521056094,0.49971109,87.027,87.0,3.74647324]
[1773521056395,0.49971109,87.027,86.985,28.74043529]
[1773521056581,0.49971109,87.019,86.99,3.74647324]
[1773521059499,0.49971109,87.017,86.99,3.74647324]
[1773521059697,0.49971109,87.017,86.99,15.24202497]
[1773521060974,0.49971109,87.009,86.98,3.74647324]
[1773521061791,0.49971109,87.009,86.99,3.74647324]
[1773521063597,0.49971109,87.008,86.99,3.74524322]
[1773521064187,0.49971109,87.008,86.964,40.24653879]
[1773521064188,0.49971109,87.008,86.98,3.74524322]
[1773521064597,0.49971109,87.008,86.99,3.74524322]
[1773521069003,0.49971109,87.008,87.0,3.74524322]
[1773521069197,0.49971109,87.02,87.0,3.74524322]
[1773521073791,0.49971109,87.02,87.001,11.49412075]
[1773521074105,0.49971109,87.02,87.01,3.74524322]
[1773521074304,0.49971109,87.02,87.0,3.74524322]
[1773521075018,0.49971109,87.02,87.0,15.23936473]
[1773521075310,0.49971109,87.02,86.971,2.95506722]
[1773521075506,0.49971109,87.018,87.0,3.74524322]
[1773521076209,8.06,87.034,87.0,3.74524322]
[1773521076210,0.49971109,87.052,87.01,3.74524322]
[1773521076409,0.49971109,87.052,87.004,2.95506722]
[1773521076410,0.1,87.06,87.031,0.45010597]
[1773521076596,0.1,87.06,87.04,3.74524322]
[1773521077408,11.5864129,87.06,87.04,3.74524322]
[1773521078393,0.49911853,87.052,87.04,3.74524322]
[1773521081909,0.49911853,87.052,87.04,3.34524322]
[1773521082117,0.49911853,87.052,87.04,3.14524322]
[1773521082317,0.49911853,87.051,87.03,3.74524322]
[1773521082818,0.49911853,87.051,87.04,3.74524322]
[1773521083817,11.48765077,87.05,87.04,3.74524322]
[1773521084000,0.49911853,87.049,87.04,3.74524322]
[1773521085323,0.1,87.06,87.04,3.74524322]
[1773521085524,0.1,87.06,87.041,0.49970372]